fUSD/lending_fUSD_20260122
["ID","MTS","AMOUNT","RATE_DAILY","PERIOD"]
[403004875,1769044239961,-300.0,0.00038914,2]
[403004877,1769044239970,-300.0,0.00038914,2]
[403004879,1769044239979,-300.0,0.00038914,2]
[403004881,1769044239990,-300.0,0.00038914,2]
[403004883,1769044239998,-300.0,0.00038914,2]
[403004885,1769044240007,-300.0,0.00038914,2]
[403004887,1769044240017,-300.0,0.00038914,2]
[403004889,1769044240026,-300.0,0.00038914,2]
[403004891,1769044240035,-850.48650463,0.00038914,2]
[403004893,1769044240045,-304.23239932,0.00038914,2]
[403004895,1769044240054,-300.0,0.00038914,2]
[403004897,1769044240063,-300.0,0.00038914,2]
[403004899,1769044240072,-579.48942375,0.00038914,2]
[403004901,1769044240081,-300.0,0.00038914,2]
[403004903,1769044240090,-300.0,0.00038914,2]
[403004905,1769044240099,-300.0,0.00038914,2]
[403004908,1769044240108,-300.0,0.00038914,2]
[403004910,1769044240118,-305.40833228,0.00038914,2]
[403004912,1769044240127,-300.0,0.00038914,2]
[403004914,1769044240136,-300.0,0.00038914,2]
[403004916,1769044240145,-300.0,0.00038914,2]
[403004918,1769044240154,-456.00338787,0.00038914,2]
[403004920,1769044240165,-300.0,0.00038914,2]
[403004922,1769044240174,-300.0,0.00038914,2]
[403004924,1769044240183,-1075.48337091,0.00038914,2]
[403004926,1769044240192,-300.0,0.00038914,2]
[403004928,1769044240200,-300.0,0.00038914,2]
[403004930,1769044240209,-369.14396502,0.00038914,2]
[403004932,1769044240218,-300.0,0.00038914,2]
[403004934,1769044240227,-300.0,0.00038914,2]
[403004936,1769044240236,-300.0,0.00038914,2]
[403004938,1769044240245,-300.0,0.00038914,2]
[403004940,1769044240254,-300.0,0.00038914,2]
[403004942,1769044240263,-300.0,0.00038914,2]
[403004944,1769044240272,-515.44314342,0.00038914,2]
[403004946,1769044240281,-304.38145112,0.00038914,2]
[403004948,1769044240291,-515.92097289,0.00038914,2]
[403004950,1769044240299,-300.0,0.00038914,2]
[403004952,1769044240308,-300.0,0.00038914,2]
[403004954,1769044240317,-300.0,0.00038914,2]
[403004956,1769044240326,-300.0,0.00038914,2]
[403004958,1769044240335,-300.0,0.00038914,2]
[403004960,1769044240343,-300.0,0.00038914,2]
[403004961,1769044240352,-300.0,0.00038914,2]
[403004962,1769044240362,-300.0,0.00038914,2]
[403004963,1769044240371,-850.48650463,0.00038914,2]
[403004964,1769044240380,-304.23239932,0.00038914,2]
[403004965,1769044240389,-300.0,0.00038914,2]
[403004966,1769044240399,-579.48942375,0.00038914,2]
[403004967,1769044240408,-300.0,0.00038914,2]
[403004968,1769044240417,-300.0,0.00038914,2]
[403004969,1769044240426,-300.0,0.00038914,2]
[403004970,1769044240435,-300.0,0.00038914,2]
[403004971,1769044240444,-300.0,0.00038914,2]
[403004972,1769044240453,-305.40833228,0.00038914,2]
[403004973,1769044240462,-300.0,0.00038914,2]
[403004974,1769044240471,-300.0,0.00038914,2]
[403004975,1769044240480,-300.0,0.00038914,2]
[403004976,1769044240489,-456.00338787,0.00038914,2]
[403004977,1769044240498,-300.0,0.00038914,2]
[403004978,1769044240508,-300.0,0.00038914,2]
[403004980,1769044240517,-1075.48337091,0.00038914,2]
[403004981,1769044240526,-300.0,0.00038914,2]
[403004983,1769044240535,-300.0,0.00038914,2]
[403004985,1769044240545,-369.14396502,0.00038914,2]
[403004987,1769044240554,-300.0,0.00038914,2]
[403004989,1769044240563,-300.0,0.00038914,2]
[403004991,1769044240572,-300.0,0.00038914,2]
[403004993,1769044240581,-300.0,0.00038914,2]
[403004995,1769044240589,-300.0,0.00038914,2]
[403004997,1769044240598,-300.0,0.00038914,2]
[403004999,1769044240607,-515.44314342,0.00038914,2]
[403005001,1769044240616,-304.38145112,0.00038914,2]
[403005004,1769044240628,-452.44931657,0.00038914,2]
[403005006,1769044240638,-300.0,0.00038914,2]
[403005008,1769044240647,-300.0,0.00038914,2]
[403005010,1769044240655,-376.91237162,0.00038914,2]
[403005012,1769044240664,-300.0,0.00038914,2]
[403005014,1769044240673,-300.0,0.00038914,2]
[403005016,1769044240683,-300.0,0.00038914,2]
[403005018,1769044240692,-315.91900468,0.00038914,2]
[403005020,1769044240700,-850.48650463,0.00038914,2]
[403005022,1769044240709,-304.23239932,0.00038914,2]
[403005024,1769044240718,-343.14107513,0.00038914,2]
[403005026,1769044240729,-579.48942375,0.00038914,2]
[403005028,1769044240738,-300.0,0.00038914,2]
[403005030,1769044240747,-300.0,0.00038914,2]
[403005032,1769044240756,-415.13132567,0.00038914,2]
[403005033,1769044240766,-482.04902002,0.00038914,2]
[403005035,1769044240775,-540.92129686,0.00038914,2]
[403005037,1769044240784,-305.40833228,0.00038914,2]
[403005056,1769044240937,-303.8908711,0.00038914,2]
[403005058,1769044240950,-300.0,0.00038914,2]
[403005060,1769044240959,-526.25623176,0.00038914,2]
[403005062,1769044240968,-456.00338787,0.00038914,2]
[403005064,1769044240977,-300.0,0.00038914,2]
[403005066,1769044240987,-300.0,0.00038914,2]
[403005068,1769044240996,-1075.48337091,0.00038914,2]
[403005070,1769044241005,-300.0,0.00038914,2]
[403005072,1769044241014,-557.33085532,0.00038914,2]
[403005074,1769044241024,-369.14396502,0.00038914,2]
[403005075,1769044241033,-300.0,0.00038914,2]
[403005077,1769044241041,-300.0,0.00038914,2]
[403005079,1769044241051,-300.0,0.00038914,2]
[403005081,1769044241059,-370.57395709,0.00038914,2]
[403005083,1769044241069,-395.98851487,0.00038914,2]
[403005085,1769044241078,-300.0,0.00038914,2]
[403005088,1769044241087,-515.44314342,0.00038914,2]
[403005090,1769044241096,-304.38145112,0.00038914,2]
[403005091,1769044241107,-300.0,0.00038914,2]
[403005094,1769044241116,-488.6829761,0.00038914,2]
[403005095,1769044241127,-300.0,0.00038914,2]
[403005098,1769044241137,-300.0,0.00038914,2]
[403005100,1769044241147,-300.0,0.00038914,2]
[403005102,1769044241156,-850.48650463,0.00038914,2]
[403005104,1769044241165,-304.23239932,0.00038914,2]
[403005106,1769044241176,-579.48942375,0.00038914,2]
[403005107,1769044241185,-300.0,0.00038914,2]
[403005109,1769044241195,-563.45764704,0.00038914,2]
[403005112,1769044241204,-305.40833228,0.00038914,2]
[403005114,1769044241214,-300.0,0.00038914,2]
[403005116,1769044241222,-456.00338787,0.00038914,2]
[403005118,1769044241231,-300.0,0.00038914,2]
[403005119,1769044241241,-300.0,0.00038914,2]
[403005121,1769044241250,-1075.48337091,0.00038914,2]
[403005123,1769044241259,-300.0,0.00038914,2]
[403005126,1769044241268,-369.14396502,0.00038914,2]
[403005127,1769044241279,-300.0,0.00038914,2]
[403005130,1769044241287,-319.55167433,0.00038914,2]
[403005131,1769044241298,-300.0,0.00038914,2]
[403005134,1769044241309,-300.0,0.00038914,2]
[403005135,1769044241319,-515.44314342,0.00038914,2]
[403005138,1769044241330,-304.38145112,0.00038914,2]
[403005140,1769044241340,-300.0,0.00038914,2]
[403005142,1769044241350,-300.0,0.00038914,2]
[403005143,1769044241360,-300.0,0.00038914,2]
[403005146,1769044241369,-300.0,0.00038914,2]
[403005147,1769044241378,-850.48650463,0.00038914,2]
[403005150,1769044241387,-304.23239932,0.00038914,2]
[403005151,1769044241396,-579.48942375,0.00038914,2]
[403005154,1769044241406,-300.0,0.00038914,2]
[403005155,1769044241415,-305.40833228,0.00038914,2]
[403005157,1769044241424,-300.0,0.00038914,2]
[403005160,1769044241434,-456.00338787,0.00038914,2]
[403005162,1769044241444,-300.0,0.00038914,2]
[403005164,1769044241455,-300.0,0.00038914,2]
[403005165,1769044241464,-1075.48337091,0.00038914,2]
[403005167,1769044241474,-300.0,0.00038914,2]
[403005169,1769044241483,-369.14396502,0.00038914,2]
[403005171,1769044241492,-300.0,0.00038914,2]
[403005173,1769044241501,-300.0,0.00038914,2]
[403005176,1769044241511,-300.0,0.00038914,2]
[403005178,1769044241520,-515.44314342,0.00038914,2]
[403005179,1769044241530,-304.38145112,0.00038914,2]
[403005181,1769044241541,-300.0,0.00038914,2]
[403005183,1769044241550,-300.0,0.00038914,2]
[403005185,1769044241559,-437.31000382,0.00038914,2]
[403005187,1769044241568,-500.0,0.00038915,60]
[403005190,1769044241578,-150.0,0.00038915,20]
[403005192,1769044241587,-500.0,0.00038916,120]
[403005193,1769044241596,-500.0,0.00038916,120]
[403005195,1769044241605,-500.0,0.00038916,120]
[403005197,1769044241614,-500.0,0.00038916,120]
[403005199,1769044241623,-394.84470055,0.00038926,2]
[403005201,1769044241632,-3919.0420973,0.00038931,3]
[403005203,1769044241642,-1000.0,0.00038941,7]
[403005205,1769044241651,-421.0,0.00038959,60]
[403005207,1769044241660,-11757.1262919,0.0003899,3]
[403005209,1769044241668,-151.0,0.00038997,14]
[403005211,1769044241677,-500.0,0.00038999,30]
[403005213,1769044241686,-955.06439647,0.00039,2]
[403005215,1769044241695,-30693.9757751,0.00039,2]
[403005217,1769044241704,-215.25870201,0.00039,90]
[403005219,1769044241713,-6778.58713636,0.00039,14]
[403005221,1769044241722,-304.0,0.00039,120]
[403005223,1769044241734,-500.0,0.00039,60]
[403005225,1769044241743,-3919.0420973,0.00039007,3]
[403005226,1769044241753,-7838.0841946,0.00039007,3]
[403005228,1769044241762,-421.0,0.00039014,60]
[403005230,1769044241771,-151.0,0.00039016,120]
[403005232,1769044241781,-975.92209,0.00039016,28]
[403005234,1769044241790,-975.92209,0.00039016,28]
[403005236,1769044241798,-975.92209,0.00039016,28]
[403005238,1769044241807,-975.92209,0.00039016,28]
[403005240,1769044241816,-151.0,0.00039016,7]
[403005242,1769044241825,-151.0,0.00039016,7]
[403005244,1769044241834,-151.0,0.00039016,120]
[403005246,1769044241843,-27433.2946811,0.00039016,3]
[403005248,1769044241853,-151.0,0.00039017,120]
[403005250,1769044241862,-159.131376,0.00039017,120]
[403005252,1769044241871,-151.0,0.00039017,120]
[403005253,1769044241880,-157.410192,0.00039017,120]
[403005255,1769044241889,-151.0,0.00039017,120]
[403005257,1769044241899,-157.410192,0.00039017,120]
[403005259,1769044241908,-151.0,0.00039017,120]
[403005261,1769044241917,-157.410192,0.00039017,120]
[403005263,1769044241926,-202.25689,0.00039017,120]
[403005264,1769044241936,-157.410192,0.00039017,120]
[403005266,1769044241949,-151.0,0.00039017,120]
[403005268,1769044241958,-287.631152,0.00039017,120]
[403005270,1769044241967,-287.631152,0.00039017,120]
[403005272,1769044241976,-287.631152,0.00039017,120]
[403005274,1769044241986,-287.631152,0.00039017,120]
[403005276,1769044241995,-25000.0,0.00039017,15]
[403005278,1769044242004,-151.0,0.00039023,14]
[403005280,1769044242014,-150.0,0.00039023,5]
[403005281,1769044242023,-25000.0,0.00039026,15]
[403005282,1769044242033,-25000.0,0.00039026,15]
[403005283,1769044242043,-500.0,0.00039026,120]
[403005284,1769044242052,-500.0,0.00039026,120]
[403005285,1769044242061,-500.0,0.00039026,120]
[403005286,1769044242071,-500.0,0.00039026,120]
[403005287,1769044242080,-246.508113,0.00039026,120]
[403005288,1769044242090,-151.0,0.00039026,120]
[403005289,1769044242099,-151.0,0.00039026,120]
[403005291,1769044242109,-151.0,0.00039026,120]
[403005293,1769044242118,-151.0,0.00039026,120]
[403005294,1769044242127,-13388.0562532,0.00039026,15]
[403005295,1769044242136,-151.0,0.00039026,120]
[403005296,1769044242146,-151.0,0.00039026,120]
[403005297,1769044242156,-163.694696,0.00039026,120]
[403005298,1769044242166,-151.0,0.00039026,90]
[403005299,1769044242175,-151.0,0.00039026,90]
[403005300,1769044242184,-151.0,0.00039026,120]
[403005301,1769044242193,-228.819821,0.00039026,90]
[403005302,1769044242202,-163.694696,0.00039026,120]
[403005303,1769044242211,-163.694696,0.00039026,120]
[403005304,1769044242220,-163.694696,0.00039026,120]
[403005305,1769044242230,-864.804949,0.00039026,120]
[403005306,1769044242239,-864.804949,0.00039026,120]
[403005307,1769044242248,-864.804949,0.00039026,120]
[403005308,1769044242257,-864.804949,0.00039026,120]
[403005309,1769044242266,-1643.940831,0.00039026,120]
[403005310,1769044242275,-1643.940831,0.00039026,120]
[403005311,1769044242285,-793.95,0.00039026,120]
[403005312,1769044242294,-793.95,0.00039026,120]
[403005313,1769044242303,-793.95,0.00039026,120]
[403005314,1769044242312,-793.95,0.00039026,120]
[403005315,1769044242321,-151.0,0.00039026,120]
[403005316,1769044242330,-151.0,0.00039026,120]
[403005317,1769044242339,-151.0,0.00039026,120]
[403005318,1769044242347,-262.956075,0.00039026,120]
[403005319,1769044242357,-151.0,0.00039026,120]
[403005320,1769044242366,-260.093853,0.00039026,120]
[403005322,1769044242375,-151.0,0.00039026,120]
[403005323,1769044242384,-151.0,0.00039026,120]
[403005325,1769044242393,-173.131936,0.00039026,120]
[403005327,1769044242402,-173.131936,0.00039026,120]
[403005328,1769044242412,-151.0,0.00039026,120]
[403005329,1769044242421,-173.131936,0.00039026,120]
[403005330,1769044242430,-173.131936,0.00039026,120]
[403005331,1769044242439,-785.890872,0.00039026,120]
[403005332,1769044242448,-785.890872,0.00039026,120]
[403005333,1769044242458,-316.939799,0.00039026,30]
[403005334,1769044242467,-151.0,0.00039026,120]
[403005335,1769044242476,-785.890872,0.00039026,120]
[403005336,1769044242485,-316.939799,0.00039026,30]
[403005337,1769044242494,-785.890872,0.00039026,120]
[403005338,1769044242504,-316.939799,0.00039026,30]
[403005339,1769044242513,-151.0,0.00039026,120]
[403005340,1769044242523,-316.939799,0.00039026,30]
[403005341,1769044242531,-7838.0841946,0.00039063,3]
[403005342,1769044242541,-421.0,0.00039068,60]
[403005343,1769044242550,-1000.0,0.00039069,7]
[403005344,1769044242559,-500.0,0.00039072,30]
[403005345,1769044242569,-500.0,0.00039073,5]
[403005346,1769044242578,-500.0,0.00039073,5]
[403005347,1769044242587,-500.0,0.00039073,5]
[403005348,1769044242596,-224.94641942,0.00039073,5]
[403005349,1769044242606,-500.0,0.00039073,5]
[403005350,1769044242615,-175.58159846,0.00039073,5]
[403005352,1769044242624,-500.0,0.00039073,5]
[403005354,1769044242634,-500.0,0.00039073,5]
[403005356,1769044242643,-500.0,0.00039073,5]
[403005358,1769044242652,-500.38390829,0.00039073,5]
[403005360,1769044242662,-539.30849702,0.00039073,5]
[403005362,1769044242671,-500.0,0.00039073,5]
[403005364,1769044242680,-500.0,0.00039073,5]
[403005365,1769044242689,-173.35264112,0.00039073,5]
[403005366,1769044242698,-163.83030437,0.00039073,5]
[403005367,1769044242707,-162.21798598,0.00039073,5]
[403005368,1769044242717,-500.0,0.00039073,5]
[403005369,1769044242726,-504.64837745,0.00039073,2]
[403005370,1769044242736,-500.0,0.00039073,5]
[403005371,1769044242745,-500.0,0.00039073,5]
[403005372,1769044242754,-155.97300196,0.00039073,5]
[403005373,1769044242763,-159.97595991,0.00039073,5]
[403005374,1769044242773,-159.97225362,0.00039073,5]
[403005375,1769044242782,-500.0,0.00039073,5]
[403005376,1769044242791,-500.0,0.00039073,5]
[403005377,1769044242800,-500.0,0.00039073,5]
[403005378,1769044242809,-500.0,0.00039073,5]
[403005379,1769044242818,-500.0,0.00039073,5]
[403005380,1769044242827,-500.0,0.00039073,5]
[403005381,1769044242837,-500.0,0.00039073,5]
[403005382,1769044242846,-399.79676637,0.00039073,5]
[403005383,1769044242855,-159.97493283,0.00039073,5]
[403005384,1769044242864,-500.0,0.00039073,5]
[403005385,1769044242873,-500.0,0.00039073,2]
[403005386,1769044242882,-458.32981954,0.00039073,5]
[403005387,1769044242892,-500.0,0.00039073,5]
[403005388,1769044242901,-500.0,0.00039073,5]
[403005389,1769044242911,-500.0,0.00039073,5]
[403005390,1769044242920,-500.0,0.00039073,5]
[403005391,1769044242929,-500.0,0.00039073,5]
[403005392,1769044242939,-500.0,0.00039073,5]
[403005393,1769044242952,-500.0,0.00039073,5]
[403005394,1769044242961,-500.0,0.00039073,5]
[403005395,1769044242971,-500.0,0.00039073,3]
[403005396,1769044242980,-500.0,0.00039073,5]
[403005397,1769044242990,-601.78347398,0.00039073,5]
[403005398,1769044242999,-1000.0,0.00039083,7]
[403005399,1769044243008,-156.71,0.000391,14]
[403005400,1769044243018,-286.83948649,0.00039107,14]
[403005401,1769044243028,-421.0,0.00039123,60]
[403005402,1769044243037,-1000.0,0.00039151,7]
[403005403,1769044243046,-421.0,0.00039178,60]
[403005404,1769044243055,-1000.0,0.00039178,14]
[403005405,1769044243206,-200.0,0.00039196,2]
[403005406,1769044243215,-421.0,0.00039233,60]
[403005407,1769044243224,-50947.5472649,0.00039238,3]
[403005408,1769044243234,-448.55738708,0.00039238,2]
[403005409,1769044243244,-254.633676,0.00039238,120]
[403005410,1769044243253,-975.92209,0.00039238,28]
[403005412,1769044243263,-975.92209,0.00039238,28]
[403005414,1769044243272,-975.92209,0.00039238,28]
[403005416,1769044243281,-975.92209,0.00039238,28]
[403005417,1769044243290,-151.0,0.00039238,7]
[403005418,1769044243299,-293.24800584,0.00039238,7]
[403005419,1769044243308,-151.0,0.00039238,120]
[403005420,1769044243317,-151.0,0.00039245,14]
[403005421,1769044243327,-119083.7731981,0.00039248,2]
[403005422,1769044243335,-151.0,0.00039248,120]
[403005423,1769044243344,-227.492987,0.00039248,120]
[403005424,1769044243354,-151.0,0.00039248,120]
[403005425,1769044243363,-157.410192,0.00039248,120]
[403005426,1769044243372,-151.0,0.00039248,120]
[403005427,1769044243381,-157.410192,0.00039248,120]
[403005428,1769044243391,-151.0,0.00039248,120]
[403005429,1769044243400,-157.410192,0.00039248,120]
[403005430,1769044243409,-157.410192,0.00039248,120]
[403005431,1769044243418,-151.0,0.00039248,120]
[403005432,1769044243427,-287.631152,0.00039248,120]
[403005433,1769044243436,-287.631152,0.00039248,120]
[403005434,1769044243445,-287.631152,0.00039248,120]
[403005435,1769044243454,-287.631152,0.00039248,120]
[403005436,1769044243463,-151.0,0.00039248,120]
[403005437,1769044243471,-259.460784,0.00039248,120]
[403005438,1769044243481,-184.194961,0.00039248,120]
[403005439,1769044243490,-151.0,0.00039248,120]
[403005440,1769044243499,-151.0,0.00039248,120]
[403005441,1769044243508,-151.0,0.00039248,90]
[403005442,1769044243517,-151.0,0.00039248,90]
[403005443,1769044243526,-163.694696,0.00039248,120]
[403005444,1769044243535,-151.0,0.00039248,120]
[403005445,1769044243544,-163.694696,0.00039248,120]
[403005446,1769044243553,-163.694696,0.00039248,120]
[403005447,1769044243562,-163.694696,0.00039248,120]
[403005448,1769044243571,-864.804949,0.00039248,120]
[403005449,1769044243580,-864.804949,0.00039248,120]
[403005450,1769044243589,-864.804949,0.00039248,120]
[403005451,1769044243598,-864.804949,0.00039248,120]
[403005452,1769044243607,-1643.940831,0.00039248,120]
[403005453,1769044243616,-1643.940831,0.00039248,120]
[403005454,1769044243626,-793.95,0.00039248,120]
[403005455,1769044243634,-793.95,0.00039248,120]
[403005456,1769044243643,-793.95,0.00039248,120]
[403005457,1769044243652,-793.95,0.00039248,120]
[403005458,1769044243661,-151.0,0.00039248,120]
[403005459,1769044243670,-151.0,0.00039248,120]
[403005460,1769044243679,-151.0,0.00039248,120]
[403005461,1769044243688,-151.0,0.00039248,120]
[403005462,1769044243697,-151.0,0.00039248,120]
[403005463,1769044243706,-218.036688,0.00039248,120]
[403005464,1769044243714,-173.131936,0.00039248,120]
[403005465,1769044243723,-173.131936,0.00039248,120]
[403005466,1769044243733,-151.0,0.00039248,120]
[403005467,1769044243741,-173.131936,0.00039248,120]
[403005468,1769044243750,-173.131936,0.00039248,120]
[403005469,1769044243759,-785.890872,0.00039248,120]
[403005470,1769044243768,-785.890872,0.00039248,120]
[403005471,1769044243779,-316.939799,0.00039248,30]
[403005472,1769044243788,-151.0,0.00039248,120]
[403005473,1769044243797,-785.890872,0.00039248,120]
[403005474,1769044243806,-316.939799,0.00039248,30]
[403005475,1769044243816,-785.890872,0.00039248,120]
[403005476,1769044243827,-316.939799,0.00039248,30]
[403005477,1769044243837,-151.0,0.00039248,120]
[403005478,1769044243847,-316.939799,0.00039248,30]
[403005479,1769044243856,-156.82051841,0.0003926,7]
[403005480,1769044243865,-170.0,0.00039267,90]
[403005481,1769044243874,-421.0,0.00039288,60]
[403005482,1769044243883,-150.0,0.00039298,2]
[403005483,1769044243892,-402.98426828,0.00039298,2]
[403005484,1769044243901,-150.0,0.00039298,2]
[403005485,1769044243912,-1984.64535554,0.00039298,2]
[403005486,1769044243922,-255.18,0.0003933,2]
[403005487,1769044243931,-421.0,0.00039342,60]
[403005488,1769044243940,-265.08,0.00039367,2]
[403005489,1769044243954,-3866.34533145,0.00039379,2]
[403005490,1769044243963,-156.82051841,0.00039396,7]
[403005491,1769044243972,-421.0,0.00039397,60]
[403005492,1769044243981,-150.0,0.000394,20]
[403005493,1769044243990,-426.369222,0.000394,30]
[403005494,1769044243999,-286.83948649,0.000394,14]
[403005495,1769044244009,-3919.0420973,0.00039421,3]
[403005496,1769044244019,-1359.1,0.00039431,120]
[403005497,1769044244028,-150.0,0.00039436,7]
[403005498,1769044244038,-179.51211286,0.00039448,7]
[403005499,1769044244047,-843.17948159,0.00039449,7]
[403005500,1769044244056,-421.0,0.00039452,60]
[403005501,1769044244066,-1000.0,0.00039452,14]
[403005502,1769044244075,-500.0,0.0003947,2]
[403005503,1769044244086,-1100.0,0.0003947,2]
[403005504,1769044244094,-500.0,0.0003949,120]
[403005505,1769044244104,-500.0,0.0003949,120]
[403005506,1769044244113,-500.0,0.0003949,120]
[403005507,1769044244122,-500.0,0.0003949,120]
[403005508,1769044244131,-19595.2104865,0.0003949,3]
[403005509,1769044244140,-975.92209,0.0003949,28]
[403005510,1769044244150,-975.92209,0.0003949,28]
[403005511,1769044244159,-975.92209,0.0003949,28]
[403005512,1769044244168,-975.92209,0.0003949,28]
[403005513,1769044244177,-151.0,0.0003949,7]
[403005514,1769044244186,-151.0,0.0003949,120]
[403005515,1769044244196,-151.0,0.00039497,14]
[403005516,1769044244204,-151.0,0.00039497,14]
[403005517,1769044244214,-93079.49838077,0.000395,26]
[403005518,1769044244225,-138878.4057505,0.000395,2]
[403005519,1769044244236,-250.0,0.000395,120]
[403005520,1769044244246,-151.0,0.000395,120]
[403005521,1769044244256,-151.0,0.000395,120]
[403005522,1769044244267,-157.410192,0.000395,120]
[403005523,1769044244276,-151.0,0.000395,120]
[403005524,1769044244285,-157.410192,0.000395,120]
[403005525,1769044244294,-151.0,0.000395,120]
[403005526,1769044244304,-157.410192,0.000395,120]
[403005527,1769044244313,-157.410188,0.000395,120]
[403005528,1769044244322,-151.0,0.000395,120]
[403005529,1769044244331,-287.631152,0.000395,120]
[403005530,1769044244340,-287.631152,0.000395,120]
[403005531,1769044244348,-287.631152,0.000395,120]
[403005532,1769044244358,-287.631159,0.000395,120]
[403005533,1769044244367,-151.0,0.000395,120]
[403005534,1769044244376,-151.0,0.000395,120]
[403005535,1769044244385,-151.0,0.000395,120]
[403005536,1769044244394,-151.0,0.000395,90]
[403005537,1769044244403,-151.0,0.000395,90]
[403005538,1769044244412,-163.694696,0.000395,120]
[403005539,1769044244421,-151.0,0.000395,120]
[403005540,1769044244430,-163.694696,0.000395,120]
[403005541,1769044244439,-163.694696,0.000395,120]
[403005542,1769044244448,-163.694706,0.000395,120]
[403005543,1769044244458,-864.804949,0.000395,120]
[403005544,1769044244467,-864.804949,0.000395,120]
[403005545,1769044244475,-864.804949,0.000395,120]
[403005546,1769044244485,-864.804948,0.000395,120]
[403005547,1769044244495,-1643.940831,0.000395,120]
[403005548,1769044244506,-1643.940824,0.000395,120]
[403005549,1769044244515,-793.95,0.000395,120]
[403005550,1769044244526,-793.95,0.000395,120]
[403005551,1769044244537,-793.95,0.000395,120]
[403005552,1769044244546,-793.95,0.000395,120]
[403005553,1769044244554,-151.0,0.000395,120]
[403005554,1769044244564,-151.0,0.000395,120]
[403005555,1769044244573,-151.0,0.000395,120]
[403005556,1769044244584,-151.0,0.000395,120]
[403005557,1769044244594,-151.0,0.000395,120]
[403005558,1769044244604,-173.131936,0.000395,120]
[403005559,1769044244614,-173.131936,0.000395,120]
[403005560,1769044244623,-151.0,0.000395,120]
[403005561,1769044244632,-173.131936,0.000395,120]
[403005562,1769044244642,-173.131938,0.000395,120]
[403005563,1769044244652,-785.890872,0.000395,120]
[403005564,1769044244662,-785.890872,0.000395,120]
[403005565,1769044244671,-316.939799,0.000395,30]
[403005566,1769044244681,-151.0,0.000395,120]
[403005567,1769044244691,-785.890872,0.000395,120]
[403005568,1769044244699,-316.939799,0.000395,30]
[403005569,1769044244708,-785.890872,0.000395,120]
[403005570,1769044244717,-316.939799,0.000395,30]
[403005571,1769044244726,-261.314292,0.000395,120]
[403005572,1769044244735,-316.939794,0.000395,30]
[403005573,1769044244743,-421.0,0.00039507,60]
[403005574,1769044244752,-421.0,0.00039561,60]
[403005575,1769044244761,-157.89471827,0.00039569,67]
[403005576,1769044244770,-5800.0,0.00039611,14]
[403005577,1769044244779,-5800.0,0.00039616,14]
[403005578,1769044244788,-500.0,0.00039616,120]
[403005579,1769044244798,-500.0,0.00039616,120]
[403005580,1769044244807,-500.0,0.00039616,120]
[403005581,1769044244818,-500.0,0.00039616,120]
[403005582,1769044244829,-423.6249235,0.00039616,60]
[403005583,1769044244838,-5800.0,0.00039619,14]
[403005584,1769044244849,-1000.0,0.00039621,5]
[403005585,1769044244858,-1000.0,0.00039621,5]
[403005586,1769044244868,-303.22862382,0.00039621,5]
[403005587,1769044244878,-1000.0,0.00039621,5]
[403005588,1769044244887,-1000.0,0.00039621,5]
[403005589,1769044244896,-1000.0,0.00039621,5]